[Event "37th ECCC 2022"]
[Site "Mayrhofen"]
[Date "2022.10.06"]
[Round "4.21"]
[White "Moussard, Jules"]
[Black "Gokerkan, Cem Kaan"]
[Result "1-0"]
[ECO "B90"]
[WhiteElo "2686"]
[BlackElo "2465"]
[Annotator "TA"]
[PlyCount "105"]
[EventDate "2022.10.03"]
[EventType "team-tourn"]
[EventCountry "AUT"]
[SourceTitle "playchess.com"]
[Source "ChessBase"]
[SourceQuality "1"]
[TimeControl "40/5400+30:1800+30"]

{[%evp 15,105,11,16,7,26,3,6,-7,0,20,40,37,31,15,38,30,59,49,60,20,61,42,56,58,65,63,144,95,103,95,97,92,108,106,162,160,256,251,255,235,248,162,266,203,214,213,188,182,180,176,181,186,178,177,184,165,166,176,173,127,226,222,222,229,222,219,231,228,229,216,231,240,242,236,263,241,406,299,292,258,351,349,348,344,339,329,380,370,371,331,351,314]} 1. e4 {[%emt 0:00:02]} c5 {[%emt 0:00:07]} 2. Nf3 {[%emt 0:00:05][%cal Bg1f3,Bf3d4,Bd4e2,Be2g3][%mdl 32]} d6 {[%emt 0:00:06]} 3. d4 {[%emt 0:00:04]} Nf6 {[%emt 0:00:05]} 4. Nc3 {[%emt 0:00:06]} cxd4 {[%emt 0:00:04]} 5. Nxd4 {[%emt 0:00:06]} a6 {[%emt 0:00:04]} 6. Bd3 {[%emt 0:00:09]} e5 {[%emt 0:03:08]} 7. Nde2 {[%emt 0:00:41]} Be7 {[%emt 0:02:59]} 8. O-O {[%emt 0:00:08]} O-O {[%emt 0:09:45]} 9. Ng3 {[%emt 0:00:47] B90: Sicilian Najdorf: Unusual White 6th moves, 6 Be3 Ng4 and 6 Be3 e5.} b5 {[%emt 0:02:25]} 10. f4 {[%emt 0:01:57] [#]} Nc6 $146 {[%emt 0:10:37]} ({Predecessor:} 10... Nbd7 11. Nf5 Bb7 12. Qf3 b4 13. Ne2 d5 14. exd5 Bc5+ 15. Kh1 e4 16. Bxe4 Nxe4 17. Qxe4 {0-1 (41) Karthik,V (2470)-Verstraeten,R (2365) El Prat de Llobregat 2019}) 11. Nd5 {[%emt 0:04:31] The position is equal.} exf4 {[%emt 0:07:29]} 12. Nxe7+ {[%emt 0:01:24]} Qxe7 {[%emt 0:00:44]} 13. Bxf4 {[%emt 0:00:05]} Ng4 {[%emt 0:03:58]} 14. Kh1 {[%emt 0:06:33]} Re8 {[%emt 0:12:36]} 15. a4 {[%emt 0:07:17]} bxa4 {[%emt 0:04:39]} (15... Qh4 16. h3 $16) 16. Rxa4 {[%emt 0:06:47]} Nge5 {[%emt 0:02:55]} 17. Qd2 {[%emt 0:01:31]} Rb8 {[%emt 0:01:16]} 18. b3 {[%emt 0:05:28]} a5 {[%emt 0:01:53]} 19. Bc4 {[%emt 0:00:17]} Be6 {[%emt 0:09:17]} 20. Bd5 {[%emt 0:01:11]} Rec8 {[%emt 0:03:45]} ({Better is} 20... Qd8 $14) 21. Bxc6 {[%emt 0:15:29] White is more active.} ({White should try} 21. Bg5 Qb7 22. Bxe6 fxe6 23. Qxd6) 21... Rxc6 $16 {[%emt 0:00:21]} 22. Rxa5 {[%emt 0:00:40]} Qc7 {[%emt 0:00:06]} 23. Ra2 {[%emt 0:00:17]} Rc8 {[%emt 0:01:38][%cal Rc6c2]} 24. Rf2 {[%emt 0:00:20]} h5 {[%emt 0:06:31] [#]} (24... Rd8 $16) 25. h3 $1 $18 {[%emt 0:01:42]} ({Weaker is} 25. Nxh5 {[#]} Bxb3 $1 26. Bxe5 (26. cxb3 {gets mated.} Rc1+ 27. Qxc1 Qxc1+ 28. Bxc1 Rxc1+) 26... dxe5 $11) 25... g6 {[%emt 0:03:15]} (25... h4 $16 {was worth a try.}) 26. Bg5 {[%emt 0:02:52][%cal Bf4g5,Bg5f6,Bf6d4][%mdl 32]} Kh7 {[%emt 0:02:17]} 27. Bf6 {[%emt 0:01:58][%cal Og3h5]} Nd7 {[%emt 0:02:08]} 28. Bd4 {[%emt 0:06:49][%cal Og3h5] Strongly threatening Nxh5!} Ne5 {[%emt 0:01:40]} (28... Qd8 $142 29. Ne2 R6c7) 29. Nf1 {[%emt 0:00:10]} Qb7 {[%emt 0:02:24]} 30. Ra7 {[%emt 0:01:29]} Qb5 {[%emt 0:00:57]} 31. Ne3 {[%emt 0:01:29] Threatens to win with c4.} R6c7 {[%emt 0:00:14]} 32. Ra5 {[%emt 0:01:08]} Qc6 {[%emt 0:01:36]} 33. Bxe5 {[%emt 0:02:14]} dxe5 {[%emt 0:00:01]} 34. Rxe5 {[%emt 0:00:10]} Qc3 {[%emt 0:01:52]} 35. Qxc3 {[%emt 0:00:05]} Rxc3 {[%emt 0:00:02]} 36. Re2 {[%emt 0:00:13]} Kg7 {[%emt 0:00:10]} 37. Kg1 {[%emt 0:00:16]} (37. Ra5 $18) 37... h4 {[%emt 0:02:02]} (37... R8c6 $16 38. Kf2 Bc8) 38. Kf2 {[%emt 0:00:18]} Ra8 {[%emt 0:01:23]} 39. Ke1 {[%emt 0:05:38]} Ra2 {[%emt 0:00:19]} 40. Rb5 {[%emt 0:00:16]} Bd7 {[%emt 0:03:02]} 41. Rb4 {[%emt 0:31:24]} Be6 {[%emt 0:00:59]} 42. Kd1 {[%emt 0:00:00]} Kh6 {[%emt 0:01:01]} 43. Nd5 {[%emt 0:00:00]} Rg3 {[%emt 0:01:14]} 44. Ne3 {[%emt 0:00:00]} Kg5 {[%emt 0:08:41]} 45. Kd2 {[%emt 0:00:00]} Kf4 $2 {[%emt 0:02:55]} (45... Ra1 46. Rf2 Ra8) 46. e5+ {[%emt 0:00:00]} Kg5 {[%emt 0:00:11]} 47. Rf2 {[%emt 0:00:00]} Ra5 {[%emt 0:01:14]} 48. Nf1 {[%emt 0:00:00]} Rd5+ {[%emt 0:00:20]} 49. Kc1 {[%emt 0:00:00]} Rc3 {[%emt 0:00:19]} 50. Nd2 {[%emt 0:00:00] Black must now prevent Ne4+.} Re3 {[%emt 0:04:33]} 51. Nf3+ {[%emt 0:00:00]} Kh6 {[%emt 0:00:12]} 52. Rxh4+ {[%emt 0:00:00]} Kg7 {[%emt 0:00:01]} 53. Rf4 {[%emt 0:00:00] Weighted Error Value: White=0.14 (very precise) /Black=0.24 (precise)} 1-0

[Event "37th ECCC 2022"]
[Site "Mayrhofen"]
[Date "2022.10.06"]
[Round "4.22"]
[White "Firat, Burak"]
[Black "Alekseenko, Kirill"]
[Result "1/2-1/2"]
[ECO "A05"]
[WhiteElo "2455"]
[BlackElo "2691"]
[Annotator "TA"]
[PlyCount "117"]
[EventDate "2022.10.03"]
[EventType "team-tourn"]
[EventCountry "AUT"]
[SourceTitle "playchess.com"]
[Source "ChessBase"]
[SourceQuality "1"]
[TimeControl "40/5400+30:1800+30"]

{[%evp 10,117,16,13,30,14,36,39,32,33,57,52,64,59,65,29,27,16,33,0,25,9,72,67,61,45,45,42,74,76,168,54,182,180,257,260,256,270,266,154,160,155,140,108,92,76,314,0,0,0,0,0,0,0,0,-223,-18,-22,-22,-14,-8,-12,11,11,11,11,16,14,25,19,20,20,14,27,29,14,30,0,0,0,122,78,71,47,57,8,8,8,8,8,8,8,8,8,8,8,8,8,8,8,8,8,8,8,8,8,8,0,8,0]} 1. Nf3 {[%emt 0:00:14]} Nf6 {[%emt 0:02:03]} 2. g3 {[%emt 0:00:21]} b5 {[%emt 0:00:35]} 3. Bg2 {[%emt 0:00:39]} Bb7 {[%emt 0:00:23]} 4. Na3 {[%emt 0:03:06]} a6 {[%emt 0:05:49]} 5. c4 {[%emt 0:00:24]} b4 {[%emt 0:02:19]} 6. Nc2 {[%emt 0:01:57]} e6 {[%emt 0:02:42] A05: Réti Opening: 1 Nf3 Nf6.} 7. d4 {[%emt 0:00:57][%cal Bd2d4,Bd4d5][%mdl 32]} Be7 {[%emt 0:01:45] [#] was the old line (7...a5).} 8. d5 $146 {[%emt 0:07:32]} ({Predecessor:} 8. O-O O-O 9. d5 Qc8 10. Nfd4 c5 11. Nb3 a5 12. d6 Bd8 13. Bxb7 Qxb7 14. a4 {1-0 (41) Rapport,R (2559)-Zeller,F (2402) Deizisau 2012}) 8... O-O {[%emt 0:12:25] White is slightly better.} 9. Nh4 {[%emt 0:02:56][%cal Od5d6]} Qc8 {[%emt 0:00:17]} 10. e4 {[%emt 0:00:33]} Ne8 {[%emt 0:03:59]} 11. O-O {[%emt 0:02:52]} a5 {[%emt 0:13:58]} 12. f4 {[%emt 0:06:14]} c6 {[%emt 0:02:10]} 13. Ne3 {[%emt 0:10:14]} d6 {[%emt 0:07:11]} 14. b3 {[%emt 0:16:15]} Bf6 {[%emt 0:02:12]} 15. Rb1 {[%emt 0:01:36]} Nd7 {[%emt 0:00:34]} (15... cxd5 $11 16. exd5 (16. cxd5 Nd7 $11) 16... Na6) 16. dxe6 $1 $16 {[%emt 0:06:07]} fxe6 {[%emt 0:00:06]} 17. Bh3 {[%emt 0:04:54]} Nc5 {[%emt 0:04:48]} 18. e5 $36 {[%emt 0:00:12][%mdl 2048] White is pushing.} dxe5 {[%emt 0:03:46]} 19. fxe5 {[%emt 0:03:00]} Bxe5 {[%emt 0:00:19]} (19... Be7 $16) 20. Rxf8+ $18 {[%emt 0:02:36]} Kxf8 {[%emt 0:00:03]} 21. Ng4 $1 {[%emt 0:12:21]} (21. Qh5 Bd4 $11) 21... Bc3 {[%emt 0:20:33]} (21... Bf6 $2 22. Nxf6 Nxf6 23. Qd6+ Kg8 24. Qxc5 $18) (21... Bd6 {keeps fighting.}) 22. Qf3+ $1 {[%emt 0:01:02]} (22. Be3 Ne4 $14) 22... Kg8 {[%emt 0:00:34]} 23. Be3 {[%emt 0:00:04]} Na6 {[%emt 0:00:43] [#]} 24. Rf1 {[%emt 0:03:17]} (24. Nh6+ $1 $18 {[%mdl 512]} gxh6 25. Nf5 exf5 26. Bxf5) 24... Nf6 {[%emt 0:00:33]} 25. Nxf6+ {[%emt 0:02:13]} Bxf6 {[%emt 0:00:07]} 26. Qe4 {[%emt 0:02:02]} Nc7 {[%emt 0:00:38][%cal Oc6c5]} 27. Bc5 {[%emt 0:05:55][%cal Oh4g6]} a4 $2 {[%emt 0:06:27] [#]} (27... Qe8 $16) 28. Rxf6 $2 {[%emt 0:02:06]} gxf6 $11 {[%emt 0:01:33]} 29. Qg4+ {[%emt 0:00:40]} Kh8 {[%emt 0:02:23]} 30. Be7 {[%emt 0:00:43][%cal Re7f6]} Ne8 {[%emt 0:00:12] And now ...axb3 would win.} 31. Qh5 $1 {[%emt 0:02:20]} Qd7 {[%emt 0:01:21]} 32. Qf7 $2 {[%emt 0:00:13]} (32. Qh6 $1 $11 {and White has nothing to worry.} Qd4+ 33. Kf1 Qd1+ 34. Kf2 Qd4+ 35. Kf1 Qd3+ 36. Kf2 Qd4+ 37. Kf1) 32... Ng7 $2 {[%emt 0:01:52]} ({Black should play} 32... Qd4+ $19 33. Kf1 Qa1+ 34. Kf2 Qxa2+ 35. Kg1 Qa1+ 36. Kf2 Qa2+ 37. Ke1 Qb1+ 38. Ke2 Qe4+ 39. Kf2 Qd4+ 40. Ke2 Qb2+ 41. Kf1 Qc1+ 42. Ke2 Qh6 43. Bxe6 Qg7 44. bxa4 Qxf7 45. Bxf7 Ng7 46. Bxb4 Ba6) 33. Qxf6 {[%emt 0:00:02]} axb3 {[%emt 0:00:22]} 34. axb3 {[%emt 0:00:14]} c5 {[%emt 0:02:09]} 35. Bxc5 {[%emt 0:00:05]} Qc6 {[%emt 0:00:12] ( -> ...Qh1+)} 36. Bd4 $1 {[%emt 0:00:28][%csl Gd4][%cal Rf6g7] Active counter play! A strong pair of Bishops.} Qh1+ {[%emt 0:00:34]} 37. Kf2 {[%emt 0:00:02][%csl Gd4][%cal Rf6g7]} Ra2+ {[%emt 0:00:34]} (37... Qxh2+ 38. Bg2 Ra2+ 39. Bb2 Rxb2+ 40. Qxb2 Bxg2 41. Nxg2 $16) 38. Bb2 {[%emt 0:00:43] Really sharp!} Rxb2+ {[%emt 0:00:43]} 39. Qxb2 {[%emt 0:00:03]} Qxh2+ {[%emt 0:00:22]} 40. Bg2 {[%emt 0:00:03]} Bxg2 $1 {[%emt 0:00:24]} 41. Nxg2 {[%emt 0:30:21][%mdl 4096] Endgame aiming for c5. KQN-KQN} Qh5 {[%emt 0:08:06]} 42. Qd4 {[%emt 0:00:00] Black should prevent Qd8+.} Kg8 {[%emt 0:00:11]} 43. c5 {[%emt 0:00:00]} Qf5+ {[%emt 0:12:36]} 44. Kg1 {[%emt 0:00:00] Black must now prevent c6.} e5 {[%emt 0:03:06]} (44... Qb1+ $11 {remains equal.} 45. Kh2 Qxb3) 45. Qd8+ {[%emt 0:00:00]} ({Much less strong is} 45. Qxb4 Qb1+ 46. Kh2 Qg6 47. Qc4+ Qf7 $18) 45... Qf8 {[%emt 0:06:18]} 46. Qd5+ {[%emt 0:00:00]} (46. Qb6 $5 {[%cal Rb6b4]}) 46... Qf7 {[%emt 0:00:02]} 47. Ne3 {[%emt 0:00:00]} ({Don't do} 47. Qxe5 Qxb3 48. Qb8+ Kf7 $16) (47. Qd2 $14) 47... Qxd5 {[%emt 0:01:17] The position is equal.} 48. Nxd5 {[%emt 0:00:00] Threatens to win with c6. KN-KN} Kf7 {[%emt 0:00:09]} 49. Nxb4 {[%emt 0:00:00]} Nf5 {[%emt 0:00:41]} 50. Kf2 {[%emt 0:03:35] Nc2 is the strong threat.} Nd4 {[%emt 0:00:14] Against Nc2} 51. Nd3 {[%emt 0:01:35]} Nxb3 {[%emt 0:00:50]} 52. Nxe5+ {[%emt 0:00:52]} Ke6 {[%emt 0:00:09] [#]} 53. c6 $1 {[%emt 0:01:21] Strongly threatening c7.} Kd6 {[%emt 0:00:03]} (53... Nc5 54. c7) 54. Ke3 {[%emt 0:00:35]} h5 {[%emt 0:00:28]} 55. Ke4 {[%emt 0:00:58]} (55. c7 $5 Kxc7 56. Nf7 $11) 55... Nd2+ {[%emt 0:00:55]} 56. Kf4 {[%emt 0:00:56]} Nf1 {[%emt 0:00:31] [#]} 57. Kf3 $1 {[%emt 0:00:33]} Nd2+ {[%emt 0:00:22]} (57... Kxe5 $2 58. c7 Nh2+ 59. Kg2 $18) (57... Kc7 58. Kf2) 58. Kf4 {[%emt 0:00:02]} Nf1 {[%emt 0:00:07]} 59. Kf3 {[%emt 0:00:03] Black defended with fortune.  Weighted Error Value: White=0.20 (precise) /Black=0.25 (precise)} 1/2-1/2

[Event "37th ECCC 2022"]
[Site "Mayrhofen"]
[Date "2022.10.06"]
[Round "4.23"]
[White "Movsesian, Sergei"]
[Black "Ozen, Deniz"]
[Result "1-0"]
[ECO "C07"]
[WhiteElo "2619"]
[BlackElo "2397"]
[Annotator "TA"]
[PlyCount "67"]
[EventDate "2022.10.03"]
[EventType "team-tourn"]
[EventCountry "AUT"]
[SourceTitle "playchess.com"]
[Source "ChessBase"]
[SourceQuality "1"]
[TimeControl "40/5400+30:1800+30"]

{[%evp 14,67,12,12,14,14,11,0,4,-18,0,-11,-11,-42,-48,-91,-81,-113,-89,-108,-8,-6,58,36,49,27,48,-48,-1,-112,-22,-45,7,0,0,-25,-21,-14,0,-41,-38,-49,0,0,0,0,122,119,101,86,986,918,827,916,29990,29991]} 1. e4 {[%emt 0:00:03]} e6 {[%emt 0:00:14]} 2. d4 {[%emt 0:00:16]} d5 {[%emt 0:00:06]} 3. Nd2 {[%emt 0:00:24]} c5 {[%emt 0:00:28]} 4. Ngf3 {[%emt 0:00:33]} cxd4 {[%emt 0:00:33]} 5. Nxd4 {[%emt 0:00:37]} Nc6 {[%emt 0:00:48]} 6. Bb5 {[%emt 0:02:40]} Bd7 {[%emt 0:00:10]} 7. Nxc6 {[%emt 0:00:08]} bxc6 {[%emt 0:00:05]} 8. Bd3 {[%emt 0:00:06]} Bd6 {[%emt 0:00:33] C07: French Tarrasch: 3...c5, 4 Ngf3 and 4 exd5 Qxd5.} 9. Qe2 {[%emt 0:00:46]} e5 {[%emt 0:04:34] is more profitable than 9...Ne7 at the moment.} 10. c4 {[%emt 0:06:14]} d4 {[%emt 0:00:50] The position is equal.} 11. O-O {[%emt 0:00:31][%cal Of2f4]} c5 {[%emt 0:22:22][%cal Bc6c5,Bc5b4,Bb4a3][%mdl 32]} 12. f4 {[%emt 0:01:13]} (12. b4 $5) 12... Ne7 {[%emt 0:19:43]} ({But not} 12... exf4 13. e5 Be7 14. Ne4 $16) 13. b4 {[%emt 0:23:22]} cxb4 {[%emt 0:09:29] [#]} 14. a3 $146 {[%emt 0:22:48] [#]} ({Predecessor:} 14. fxe5 Bxe5 15. Qh5 Ng6 16. a3 b3 17. Nf3 Qb8 18. Ng5 b2 19. Bxb2 Qxb2 20. Nxf7 {1-0 (46) Gurel,E (2403)-Gunduz,U (2349) Ayvalik 2022}) 14... Nc6 $1 {[%emt 0:07:50]} ({Much less strong is} 14... exf4 15. e5 Bc7 16. axb4 $14) 15. Nb3 {[%emt 0:04:06]} bxa3 {[%emt 0:07:27]} 16. c5 {[%emt 0:02:41] [#]} Bc7 {[%emt 0:03:50]} (16... Be7 $1 $17 {White should prevent ...a5.} 17. Bc4 O-O) 17. f5 $11 {[%emt 0:00:41]} f6 {[%emt 0:09:45]} (17... Qf6 $11) 18. Bc4 $36 {[%emt 0:02:56][%mdl 2048] aiming for Qh5+. White has the initiative.} Kf8 {[%emt 0:00:17]} 19. Rxa3 {[%emt 0:02:59]} a5 {[%emt 0:01:18]} 20. Nd2 {[%emt 0:03:58]} ({Reject} 20. Qh5 Be8 21. Qd1 Nb4 $17) ({White should try} 20. Bd2 $14) 20... Qe7 {[%emt 0:00:43]} (20... Nb4 $15) 21. Kh1 {[%emt 0:00:35]} (21. Nb3 $11) 21... Be8 {[%emt 0:00:38]} ({Better is} 21... Qxc5 $17 22. Ra1 Nb4) 22. Rg3 $11 {[%emt 0:01:39]} Bf7 {[%emt 0:01:32]} (22... Nb4 $15) 23. Bd5 {[%emt 0:01:25]} Qd7 {[%emt 0:01:14]} 24. Qg4 {[%emt 0:00:55]} Rg8 {[%emt 0:00:49]} 25. Be6 {[%emt 0:00:50]} Qe7 {[%emt 0:00:53]} 26. Nc4 {[%emt 0:04:09][%cal Oc1h6] And now Bh6! would win.} (26. Bd5 $5 {[%cal Rd5c6]} Qd7 27. Be6 $15) 26... h5 {[%emt 0:01:03]} 27. Qh3 {[%emt 0:01:42]} Qxc5 {[%emt 0:03:13]} (27... Rh8 $1 $15) 28. Bxf7 {[%emt 0:04:33]} Kxf7 {[%emt 0:00:06]} 29. Qxh5+ {[%emt 0:00:04]} Ke7 {[%emt 0:00:55]} (29... Kf8 $11 {keeps the balance.}) 30. Ba3 $16 {[%emt 0:00:44][%mdl 1024] White has strong compensation. White has more active pieces.} Nb4 {[%emt 0:00:01]} 31. Rc1 {[%emt 0:00:11][%cal Oc4e3] Threatens to win with Ne3! Dancing on a razor blade.} Bd6 $2 {[%emt 0:00:50][%mdl 8192]} (31... Qb5 $16) 32. Qh7 $18 {[%emt 0:04:34]} Kf7 {[%emt 0:00:28]} 33. h4 {[%emt 0:00:18]} Rac8 {[%emt 0:02:26]} 34. Nxd6+ {[%emt 0:00:33] Weighted Error Value: White=0.21 (precise) /Black=0.52} 1-0

[Event "37th ECCC 2022"]
[Site "Mayrhofen"]
[Date "2022.10.06"]
[Round "4.24"]
[White "Kamer, Kayra"]
[Black "Cornette, Matthieu"]
[Result "1/2-1/2"]
[ECO "A00"]
[WhiteElo "2354"]
[BlackElo "2572"]
[Annotator "TA"]
[PlyCount "125"]
[EventDate "2022.10.03"]
[EventType "team-tourn"]
[EventCountry "AUT"]
[SourceTitle "playchess.com"]
[Source "ChessBase"]
[SourceQuality "1"]
[TimeControl "40/5400+30:1800+30"]

{[%evp 9,125,8,8,9,25,7,22,12,8,8,11,12,9,3,9,-4,-2,-2,-7,-50,-50,-50,-50,-51,-52,-81,-62,-111,-64,-74,-62,-76,-69,-75,-71,-66,-50,-56,-56,-56,-60,-59,-68,-70,-69,-70,-70,-91,-73,-73,-75,-75,-77,-73,-58,-71,-38,-50,-50,-58,-51,-93,-92,-85,-51,-51,-51,-51,-37,-37,0,-51,-51,-51,-51,-58,-51,-123,-116,-124,-124,-124,-128,-128,-128,-151,-105,-123,-100,-100,-91,-91,-30,-30,-29,-29,-29,-29,-29,-78,-78,-78,-78,-78,-78,-78,-78,-78,-78,-78,-78,-78,-78,-78,-78,-78,-78,-78]} 1. g3 {[%emt 0:00:06]} e5 {[%emt 0:05:59]} 2. Bg2 {[%emt 0:00:36]} Nf6 {[%emt 0:01:32]} 3. c4 {[%emt 0:03:06]} Bc5 {[%emt 0:00:30]} 4. Nc3 {[%emt 0:01:59]} c6 {[%emt 0:01:42]} 5. e3 {[%emt 0:01:15][%cal Be2e3,Be3d4][%mdl 32]} O-O {[%emt 0:03:59]} 6. Nge2 {[%emt 0:01:19] A23: English Opening: 1...e5 2 Nc3 Nf6 3 g3 c6.} Bb6 {[%emt 0:01:15]} 7. d4 {[%emt 0:01:32]} exd4 {[%emt 0:00:53]} 8. exd4 {[%emt 0:05:29] The position is equal.} d5 {[%emt 0:00:32]} 9. cxd5 {[%emt 0:00:24]} Nxd5 {[%emt 0:00:07]} 10. Nxd5 {[%emt 0:00:42]} cxd5 {[%emt 0:00:04]} 11. O-O {[%emt 0:01:04]} Nc6 {[%emt 0:00:14] was the old line (11...Bg4).} 12. Nc3 {[%emt 0:08:43]} Bxd4 {[%emt 0:03:03]} 13. Nxd5 {[%emt 0:00:26]} Be6 {[%emt 0:01:50]} 14. Qf3 {[%emt 0:00:29] [#]} Qa5 $146 {[%emt 0:05:23]} ({Predecessor:} 14... Qd7 15. Be3 Bg4 16. Qf4 Bxb2 17. Rab1 Be5 18. Qa4 Rad8 19. Qb5 Qe6 20. Rfe1 Rfe8 {½-½ (80) Tomilova,E (2332)-Protopopova,A (2332) Satka 2018}) 15. Bf4 {[%emt 0:10:04]} Rad8 {[%emt 0:11:03]} 16. Nc3 {[%emt 0:01:06]} Rd7 {[%emt 0:04:27]} 17. Rfc1 {[%emt 0:04:53]} Rfd8 {[%emt 0:04:55]} 18. h4 {[%emt 0:01:17]} (18. Rd1 $15) 18... h6 {[%emt 0:05:00]} ({Better is} 18... h5 $17 {White must now prevent ...Bg4.} 19. Qe2 Re7) 19. Qe2 $15 {[%emt 0:06:18] Inhibits Bg4.} Nb4 {[%emt 0:07:23][%cal Ob4d3] ...Nd3! is the strong threat.} 20. Be4 {[%emt 0:06:55] Against Nd3} Bxc3 {[%emt 0:07:22]} (20... Nxa2 $2 21. Nxa2 a6 22. Re1 $1 $18) 21. Rxc3 {[%emt 0:00:43]} Nd5 {[%emt 0:00:32]} 22. Bxd5 {[%emt 0:01:14]} Qxd5 {[%emt 0:01:06]} 23. Qe5 {[%emt 0:07:05]} Qxe5 {[%emt 0:00:37]} 24. Bxe5 {[%emt 0:00:04]} Rd1+ {[%emt 0:00:03]} 25. Rxd1 {[%emt 0:00:03]} Rxd1+ {[%emt 0:00:04][%mdl 4096] Endgame KRB-KRB} 26. Kh2 {[%emt 0:00:53]} Bxa2 {[%emt 0:02:53]} 27. g4 {[%emt 0:00:58]} Be6 {[%emt 0:00:59]} 28. g5 {[%emt 0:01:11]} hxg5 {[%emt 0:02:18]} 29. hxg5 {[%emt 0:00:38]} Rd2 {[%emt 0:00:44][%csl LRb2,LRf2]} 30. Rf3 {[%emt 0:01:54]} Kh7 {[%emt 0:01:32]} 31. Kg3 {[%emt 0:01:06]} Kg6 {[%emt 0:00:28]} 32. Re3 {[%emt 0:01:42]} b5 {[%emt 0:06:47]} ({Don't do} 32... Kxg5 33. Bf4+ Kf5 34. Re5+ Kf6 35. Rxe6+ Kxe6 36. Bxd2 $18) 33. Bc3 {[%emt 0:00:48]} Rc2 {[%emt 0:00:29]} 34. b4 {[%emt 0:03:02]} Rc1 {[%emt 0:02:30]} 35. Be5 {[%emt 0:08:39]} Rc4 {[%emt 0:03:14]} (35... Kxg5 $2 36. Bf4+ Kf5 37. Re5+ Kf6 38. Rxe6+ Kxe6 39. Bxc1 $18) 36. Bd6 {[%emt 0:01:19]} a6 {[%emt 0:07:21]} 37. f4 {[%emt 0:00:52]} Rc2 {[%emt 0:01:46]} 38. Be7 {[%emt 0:00:55]} Kh5 {[%emt 0:02:17]} 39. Bf8 {[%emt 0:02:46]} Kg6 {[%emt 0:01:57]} 40. Be7 $1 {[%emt 0:00:19]} Rb2 {[%emt 0:01:18]} 41. Bf8 {[%emt 0:35:18]} Rd2 {[%emt 0:09:59]} 42. Be7 {[%emt 0:00:00]} Bd5 {[%emt 0:01:08]} 43. Re5 {[%emt 0:00:00]} (43. Bf8 $15) 43... f6 $17 {[%emt 0:06:33]} 44. gxf6 {[%emt 0:00:00]} gxf6 {[%emt 0:00:01]} 45. Re3 {[%emt 0:00:00] [#]} Kf5 $1 {[%emt 0:00:04]} 46. Ra3 {[%emt 0:00:00]} Bb7 {[%emt 0:01:32]} 47. Rc3 {[%emt 0:00:00]} Rd7 {[%emt 0:03:58]} (47... Rg2+ $142 48. Kh3 Rg7 49. Rc5+ Kxf4 50. Bd6+ Ke3 51. Rc3+ Ke4) 48. Re3 {[%emt 0:00:00]} Bd5 {[%emt 0:01:14]} 49. Kf2 {[%emt 0:00:00]} Bc4 {[%emt 0:01:02]} 50. Kg3 {[%emt 0:00:00]} Rd1 {[%emt 0:02:28]} ({Black should try} 50... Be6 $17 51. Bc5 Rd2) 51. Ra3 $11 {[%emt 0:00:00]} Rg1+ {[%emt 0:00:54]} 52. Kf2 {[%emt 0:00:00]} Rf1+ {[%emt 0:01:29]} 53. Kg3 {[%emt 0:00:00]} Rxf4 {[%emt 0:01:13]} 54. Rf3 {[%emt 0:00:00]} (54. Rxa6 $11 {might be stronger.} Kg5 55. Rc6) 54... Rxf3+ $17 {[%emt 0:00:10] Black is better.} 55. Kxf3 {[%emt 0:00:00] KB-KB} Ke5 {[%emt 0:00:07]} 56. Bd8 {[%emt 0:00:00]} f5 {[%emt 0:00:10]} 57. Bc7+ {[%emt 0:00:00]} Kd5 {[%emt 0:00:09]} 58. Kf4 {[%emt 0:00:00]} Bd3 {[%emt 0:00:02]} 59. Bd8 {[%emt 0:00:00]} Kc4 {[%emt 0:00:10]} 60. Ba5 {[%emt 0:00:00]} Be4 {[%emt 0:00:05]} 61. Ke5 {[%emt 0:00:00]} Kc3 {[%emt 0:00:10]} 62. Kf4 {[%emt 0:00:00]} Kd4 {[%emt 0:00:04]} 63. Bb6+ {[%emt 0:00:00] Weighted Error Value: White=0.09 (flawless) /Black=0.08 (flawless)} 1/2-1/2